bitfinex/quotes_ETHUSD_20240927
["timestamp","ask_amount","ask_price","bid_price","bid_amount"]
[1727468441975,5.649762,2703.0,2702.5,3.76675606]
[1727468442136,3.69979,2702.9,2702.5,0.06655606]
[1727468442977,3.69979,2702.9,2702.5,3.70027]
[1727468443177,3.69979,2702.9,2702.6,0.06615018]
[1727468444043,3.69979,2702.9,2702.4,3.7004]
[1727468444232,7.39961,2702.9,2702.7,0.0660835]
[1727468444440,5.35934213,2702.8,2702.3,3.70053]
[1727468444641,3.70001,2702.7,2702.2,4.47957]
[1727468445045,3.70001,2702.7,2702.3,0.06629888]
[1727468445554,0.7593,2702.6,2702.2,0.7789]
[1727468445761,0.7593,2702.6,2702.3,0.06631943]
[1727468445954,0.7593,2702.6,2702.2,4.47957]
[1727468446162,0.7593,2702.6,2702.3,0.06631943]
[1727468446363,0.7593,2702.6,2702.3,3.70053]
[1727468446570,0.7593,2702.6,2702.4,0.06625273]
[1727468447753,0.7593,2702.6,2702.2,4.47957]
[1727468447959,7.29541173,2702.9,2702.4,3.7004]
[1727468448169,0.8123,2702.8,2702.5,0.06622714]
[1727468448480,4.51217,2702.8,2702.5,0.06622714]
[1727468449955,3.69987,2702.8,2702.5,0.06622714]
[1727468451164,3.69987,2702.8,2702.6,0.06612963]
[1727468451367,3.69987,2702.8,2702.3,3.70051]
[1727468451673,3.69987,2702.8,2702.4,0.06625273]
[1727468452249,3.59561173,2702.9,2702.4,0.06625273]
[1727468453000,3.69994,2702.8,2702.4,0.06625273]
[1727468453407,0.8194,2703.0,2702.5,3.70026]
[1727468453575,0.8194,2703.0,2702.6,0.87678171]
[1727468454397,4.51907,2703.0,2702.6,0.87678171]
[1727468456577,0.8194,2703.0,2702.6,0.87678171]
[1727468456886,3.69973,2702.9,2702.6,0.87678171]
[1727468457975,7.39953,2702.9,2702.6,0.87678171]
[1727468458566,3.69973,2702.9,2702.6,0.87678171]
[1727468459094,7.39954,2702.9,2702.6,0.87678171]
[1727468459804,3.69973,2702.9,2702.6,0.87678171]
[1727468460005,7.39955,2702.9,2702.6,0.87678171]
[1727468460310,3.69973,2702.9,2702.6,0.87678171]
[1727468461004,7.39956,2702.9,2702.6,0.87678171]
[1727468461214,3.7,2702.7,2702.6,0.06398171]
[1727468461398,3.69987,2702.8,2702.4,0.7764]
[1727468461602,3.69987,2702.8,2702.5,0.06197751]
[1727468461915,8.11195173,2702.6,2702.5,0.06197751]
[1727468462214,4.860112,2702.6,2702.2,0.7764]
[1727468462411,1.159972,2702.7,2702.3,0.447715]
[1727468462708,3.69987,2702.8,2702.3,3.76261162]
[1727468463081,3.69974,2702.9,2702.6,0.7896]
[1727468463470,3.69974,2702.9,2702.7,0.06186975]
[1727468463671,3.69974,2702.9,2702.6,0.7896]
[1727468463874,3.69974,2702.9,2702.8,0.06180307]
[1727468464078,3.69974,2702.9,2702.7,0.06186975]
[1727468464314,4.859712,2702.9,2702.6,0.7896]
[1727468464612,4.859712,2702.9,2702.7,0.06186975]
[1727468465720,3.69974,2702.9,2702.7,0.06186975]
[1727468466080,4.859712,2702.9,2702.7,0.06186975]
[1727468466698,1.159972,2702.8,2702.7,0.06186975]
[1727468467815,4.859712,2702.9,2702.7,0.06186975]
[1727468468022,4.859712,2702.9,2702.6,0.7896]
[1727468468617,1.159972,2702.8,2702.6,0.7896]
[1727468468826,1.159972,2702.8,2702.7,0.06181341]
[1727468471224,1.53974999,2702.8,2702.7,0.06181341]
[1727468471586,5.23960999,2702.8,2702.7,0.06181341]
[1727468471792,5.23960999,2702.8,2702.7,0.05983326]
[1727468473190,3.69986,2702.8,2702.7,0.05983326]
[1727468473783,5.24773319,2702.8,2702.7,0.05983326]
[1727468474012,1.54787319,2702.8,2702.7,0.05983326]
[1727468474218,5.24773319,2702.8,2702.7,0.05983326]
[1727468474531,3.69986,2702.8,2702.7,0.05983326]
[1727468474712,5.63322968,2702.8,2702.7,0.05983326]
[1727468474919,6.13394075,2702.8,2702.7,0.05983326]
[1727468475131,3.70016,2702.6,2702.1,4.49151]
[1727468475292,1.16163492,2702.4,2702.2,3.70067]
[1727468475639,1.16163492,2702.4,2702.2,3.76083671]
[1727468476037,1.16163492,2702.5,2702.2,3.76083671]
[1727468476340,1.16163492,2702.5,2702.4,3.70041]
[1727468476728,1.16163492,2702.5,2702.4,3.76049446]
[1727468477346,1.54884656,2702.6,2702.4,3.76049446]
[1727468477999,1.16243234,2702.5,2702.4,3.76049446]
[1727468478203,1.16243234,2702.5,2702.4,4.61786957]
[1727468478550,1.16243234,2702.6,2702.5,4.47307]
[1727468478713,1.16287234,2702.6,2702.5,4.47307]
[1727468478910,1.54884656,2702.7,2702.5,4.47307]
[1727468478911,1.54884656,2702.7,2702.5,4.53111807]
[1727468479117,1.54884656,2702.7,2702.5,0.83084807]
[1727468479300,1.54884656,2702.6,2702.5,0.83084807]
[1727468479504,1.93605947,2702.7,2702.5,0.83084807]
[1727468480133,1.93605947,2702.6,2702.5,0.83084807]
[1727468480332,2.32327136,2702.8,2702.5,0.83084807]
[1727468480534,1.93971217,2702.6,2702.5,4.53111807]
[1727468480840,2.32327136,2702.8,2702.5,0.83084807]
[1727468480841,2.32751692,2702.8,2702.5,0.83084807]
[1727468481144,1.93961402,2702.6,2702.5,0.83084807]
[1727468481313,2.32751692,2702.8,2702.5,4.53111807]
[1727468481636,2.32751692,2702.7,2702.5,0.05804807]
[1727468482342,2.32751692,2702.8,2702.5,0.05804807]
[1727468483149,6.02738692,2702.8,2702.5,0.05804807]
[1727468483515,2.32751692,2702.8,2702.5,0.05804807]
[1727468484140,2.32751692,2702.7,2702.5,0.05804807]
[1727468484514,3.69993,2702.8,2702.3,4.48546]
[1727468484515,6.02744692,2702.8,2702.3,4.48546]
[1727468484817,1.55182062,2702.4,2702.3,4.48546]
[1727468486183,1.93977577,2702.5,2702.3,4.48546]
[1727468486442,1.93977577,2702.5,2702.4,3.70041]
[1727468488052,1.93977577,2702.5,2702.4,4.518997]
[1727468488265,1.93977577,2702.6,2702.5,3.70027]
[1727468490866,1.93977577,2702.6,2702.4,4.518937]
[1727468491184,1.93977577,2702.6,2702.5,3.70027]
[1727468491757,2.32751692,2702.8,2702.5,0.05444489]
[1727468493067,2.32751692,2702.8,2702.5,3.75464489]
[1727468493283,2.32751692,2702.8,2702.6,3.70012]
[1727468493569,1.55159114,2702.9,2702.8,3.69985]
[1727468493778,1.93948893,2702.9,2702.7,4.55290458]
[1727468494069,1.93948893,2702.9,2702.8,0.0541379]
[1727468494271,1.93940757,2702.9,2702.8,0.0541379]
[1727468494434,2.41566556,2703.0,2702.3,0.7506]
[1727468494634,1.16348967,2702.5,2702.4,3.75481463]
[1727468494871,1.55130814,2702.6,2702.4,4.39730041]
[1727468495081,1.16348414,2702.6,2702.5,4.52117]
[1727468495368,1.16350405,2702.6,2702.5,4.52117]
[1727468495558,1.16350405,2702.6,2702.5,5.24556094]
[1727468495767,1.55130814,2702.6,2702.5,5.24556094]
[1727468496974,1.93908424,2702.6,2702.5,4.57550794]
[1727468497143,1.93908424,2702.6,2702.5,0.87523794]
[1727468497353,1.93908424,2702.7,2702.5,0.87523794]
[1727468497564,1.55114017,2702.6,2702.5,4.57547794]
[1727468498275,1.55114017,2702.6,2702.5,5.40306473]
[1727468498590,1.93908424,2702.7,2702.6,3.70014]
[1727468498890,1.93908424,2702.8,2702.7,3.7]
[1727468499396,1.93908424,2702.8,2702.7,3.75419948]
[1727468500591,2.32641215,2703.1,2702.7,3.75419948]
[1727468500763,1.93867679,2702.8,2702.7,3.75419948]
[1727468505655,1.93892635,2702.8,2702.7,3.75419948]
[1727468506797,2.32671162,2703.0,2702.7,3.75419948]
[1727468506966,1.93887798,2702.8,2702.7,0.05419948]
[1727468507560,1.93887798,2702.8,2702.7,3.75419948]
[1727468510589,4.78909932,2703.0,2702.7,3.75419948]
[1727468511001,1.93953887,2702.8,2702.7,3.75419948]
[1727468511161,1.93953887,2702.8,2702.7,0.05419948]
[1727468511360,1.93939656,2702.8,2702.7,3.75417948]
[1727468514305,1.65946556,2702.8,2702.7,0.05419948]
[1727468514603,4.65974891,2702.8,2702.7,0.05419948]
[1727468514773,2.32672025,2702.8,2702.6,3.70005]
[1727468514975,2.32672025,2702.9,2702.7,0.05248191]
[1727468515187,3.12892025,2703.0,2702.7,0.05248191]
[1727468515396,3.12892025,2703.0,2702.7,3.75245191]
[1727468515586,1.93911914,2702.8,2702.7,3.69997]
[1727468516565,3.12892025,2703.0,2702.6,3.70013]
[1727468516768,2.32672025,2702.9,2702.6,3.70013]
[1727468517008,1.93910356,2702.7,2702.6,3.70013]
[1727468517664,1.93914067,2702.7,2702.6,3.70013]
[1727468517874,3.98618581,2702.8,2702.4,4.517742]
[1727468518114,1.93900941,2702.6,2702.5,3.70027]
[1727468518793,1.93900941,2702.7,2702.5,3.70027]
[1727468519512,1.93900941,2702.6,2702.5,3.70027]
[1727468520415,0.7616,2702.5,2702.2,3.70061]
[1727468520617,1.55068959,2702.4,2702.2,3.70061]
[1727468520905,1.55068959,2702.3,2702.2,3.70061]
[1727468521620,1.93836198,2702.3,2701.7,4.51927]
[1727468521774,3.70055,2702.3,2702.2,0.04999975]
[1727468521975,3.70078,2702.2,2701.7,3.70127]
[1727468522283,1.55041831,2701.8,2701.6,3.70139]
[1727468522482,1.16215082,2701.7,2701.6,3.70151]
[1727468523777,1.16215082,2701.8,2701.6,3.70151]
[1727468526280,1.16215082,2701.9,2701.6,3.70151]
[1727468527192,1.16215082,2701.9,2701.7,3.70137]
[1727468527545,1.16215082,2702.0,2701.9,3.70109]
[1727468527853,1.16011475,2702.0,2701.9,3.70109]
[1727468528155,1.16011538,2702.0,2701.9,3.70109]
[1727468529249,1.15970318,2702.0,2701.9,3.70109]
[1727468529442,1.15970318,2702.1,2702.0,3.70096]
[1727468529648,1.15970318,2702.3,2702.1,3.70082]
[1727468529836,1.15970318,2702.4,2702.1,3.70082]
[1727468531928,1.15970318,2702.3,2702.1,3.70082]
[1727468532315,1.15970318,2702.4,2702.1,3.70082]
[1727468532731,1.15970318,2702.4,2702.2,3.70067]
[1727468532948,1.15970318,2702.5,2702.3,3.70055]
[1727468533147,1.15970318,2702.5,2702.4,3.70041]
[1727468533352,1.15970318,2702.7,2702.5,3.70027]
[1727468533566,1.15970318,2702.6,2702.5,3.70027]
[1727468533856,2.33271831,2702.8,2702.4,4.53091]
[1727468533857,1.15970318,2702.7,2702.4,4.53091]
[1727468534275,1.15970318,2702.7,2702.4,4.53082]
[1727468535320,1.15970318,2702.7,2702.6,3.70014]
[1727468535523,1.15970318,2702.7,2702.5,3.70027]
[1727468535725,1.15970318,2702.7,2702.4,4.53082]
[1727468535928,1.15970318,2702.7,2702.4,3.70032]
[1727468536365,1.15970318,2702.7,2702.3,3.70047]
[1727468536568,1.15970318,2702.7,2702.2,4.4879]
[1727468536569,1.15970318,2702.7,2702.4,3.70039]
[1727468536863,1.98490318,2702.6,2702.4,0.04689444]
[1727468537224,1.98490318,2702.6,2702.2,4.4879]
[1727468537422,1.98490318,2702.6,2702.5,0.04684812]
[1727468537624,1.98490318,2702.6,2702.3,3.70045]
[1727468537927,1.98490318,2702.6,2702.5,0.04684812]
[1727468538137,1.98490318,2702.6,2702.3,3.70045]
[1727468538366,1.98490318,2702.6,2702.5,0.04684812]
[1727468538669,1.98490318,2702.6,2702.3,3.70045]
[1727468538826,1.98490318,2702.6,2702.5,0.04684812]
[1727468539026,1.98490318,2702.6,2702.4,0.04691481]
[1727468539226,1.98490318,2702.6,2702.5,0.04684812]
[1727468539537,2.37561831,2702.6,2702.3,3.70045]
[1727468539740,1.15994391,2702.5,2702.3,3.70045]
[1727468540326,1.98514391,2702.6,2702.3,3.70045]
[1727468541436,1.15994391,2702.5,2702.3,3.70045]
[1727468543035,1.15994391,2702.5,2702.1,3.70073]
[1727468543365,1.15994391,2702.4,2702.1,7.40147]
[1727468543569,1.15994391,2702.4,2702.2,3.70067]
[1727468544270,1.15994391,2702.4,2702.2,3.70064]
[1727468544626,1.15994391,2702.5,2702.2,3.70064]
[1727468545662,1.15994391,2702.4,2702.2,3.70064]
[1727468545968,1.15994391,2702.5,2702.2,3.70064]
[1727468546180,1.15994391,2702.4,2702.2,3.70064]
[1727468546540,1.15994391,2702.5,2702.0,0.8269]
[1727468546741,1.15994391,2702.4,2702.1,3.70076]
[1727468547387,3.70084,2702.1,2701.6,3.70143]
[1727468547584,1.65946556,2701.9,2701.6,3.70143]
[1727468548266,0.7934,2701.8,2701.4,7.40338]
[1727468548585,1.65946556,2701.7,2701.5,3.74771485]
[1727468548944,1.9521612,2701.8,2701.6,3.70151]
[1727468549178,0.7934,2701.8,2701.6,3.74752811]
[1727468549552,0.7934,2701.8,2701.6,7.44903811]
[1727468549744,0.7934,2701.8,2701.6,3.74752811]
[1727468550080,1.9521612,2701.8,2701.6,3.74752811]
[1727468550285,0.7934,2701.8,2701.6,3.74752811]
[1727468550661,1.1587612,2701.9,2701.8,4.50663]
[1727468550863,1.1587612,2702.2,2701.8,4.50663]
[1727468551084,1.1587612,2702.3,2701.9,3.70097]
[1727468551495,1.1587612,2702.3,2702.0,0.04575122]
[1727468551988,1.1587612,2702.2,2702.0,0.04575122]
[1727468553484,1.1587612,2702.1,2702.0,0.04575122]
[1727468554005,1.1587612,2702.2,2702.0,0.04575122]
[1727468554583,1.1587612,2702.1,2701.9,3.70107]
[1727468555120,1.1587612,2702.0,2701.8,3.70115]
[1727468555324,1.1587612,2702.1,2701.8,3.70115]
[1727468557240,1.1587612,2702.0,2701.8,3.70115]
[1727468557394,0.7653,2702.0,2701.6,3.70141]
[1727468557593,0.7653,2702.0,2701.6,7.40282]
[1727468557831,1.9240612,2702.0,2701.6,7.40282]
[1727468558052,1.9240612,2702.0,2701.6,3.70141]
[1727468558053,1.1587612,2701.9,2701.6,3.70141]
[1727468558337,1.1587612,2701.9,2701.4,4.52756]
[1727468558496,8.75278815,2702.0,2701.5,3.70162]
[1727468558497,1.1587612,2701.8,2701.5,3.70162]
[1727468559594,1.1587612,2701.9,2701.5,3.70162]
[1727468559827,1.1587612,2701.8,2701.5,3.70162]
[1727468560201,1.1587612,2701.8,2701.4,3.70178]
[1727468560405,1.1587612,2701.7,2701.2,0.8259]
[1727468560740,1.1587612,2701.7,2701.4,3.70177]
[1727468561866,2.81822676,2701.8,2701.4,3.70177]
[1727468562221,1.1587612,2701.7,2701.4,3.70177]
[1727468562972,1.1587612,2701.8,2701.4,3.7017]
[1727468563764,1.1587612,2701.8,2701.5,3.70163]
[1727468563963,1.1587612,2701.7,2701.5,3.70163]
[1727468564270,1.1587612,2701.8,2701.5,3.70163]
[1727468564566,1.1587612,2701.7,2701.4,7.40341]
[1727468564766,1.1587612,2701.8,2701.4,3.7017]
[1727468564924,1.1587612,2701.8,2701.5,3.70163]
[1727468566776,1.1587612,2701.8,2701.6,0.04387039]
[1727468567769,1.1587612,2701.7,2701.4,3.7017]
[1727468569996,1.9557612,2701.6,2701.4,3.7017]
[1727468570355,1.9557612,2701.6,2701.2,8.22977]
[1727468570356,0.797,2701.6,2701.2,8.22977]
[1727468570691,1.9557612,2701.6,2701.3,3.70185]
[1727468571189,1.1587612,2701.7,2701.4,3.70168]
[1727468571611,1.1587612,2701.6,2701.4,3.70168]
[1727468573401,1.1587612,2701.6,2701.3,3.70184]
[1727468573700,1.1587612,2701.7,2701.5,3.70164]
[1727468574085,2.37071831,2701.8,2701.5,3.70164]
[1727468574086,1.1587612,2701.6,2701.5,3.70164]
[1727468574407,1.1587612,2701.7,2701.5,3.70164]
[1727468577342,1.1587612,2701.7,2701.4,3.70177]
[1727468581318,1.1587612,2701.7,2701.6,3.70151]
[1727468581519,1.1587612,2701.8,2701.7,3.70137]
[1727468582065,1.1587612,2701.8,2701.7,3.74266917]
[1727468582622,1.1587612,2701.9,2701.7,3.74266917]
[1727468583842,1.1587612,2701.9,2701.7,0.04129917]
[1727468584045,1.1587612,2701.9,2701.8,3.70123]
[1727468584265,1.1587612,2701.9,2701.8,3.74246244]
[1727468585259,1.55041831,2701.9,2701.8,3.74246244]
[1727468585470,2.32111831,2702.0,2701.8,3.74246244]
[1727468586762,1.55041831,2701.9,2701.8,3.74246244]
[1727468588038,1.93373607,2702.0,2701.9,3.70109]
[1727468588240,1.54760783,2702.1,2702.0,3.70096]
[1727468588441,1.54760783,2702.1,2702.0,4.46236]
[1727468588657,1.93373607,2702.2,2702.0,4.9948386]
[1727468588658,1.54760783,2702.2,2702.0,4.9948386]
[1727468588983,1.54760783,2702.2,2702.1,3.70082]
[1727468589286,1.16116933,2702.2,2702.1,3.74173035]
[1727468589486,1.54760783,2702.3,2702.2,3.70068]
[1727468589979,0.77,2702.5,2702.2,3.70068]
[1727468589980,2.70373607,2702.5,2702.3,3.70055]
[1727468590160,1.54815101,2702.4,2702.3,3.70055]
[1727468590340,2.70373607,2702.5,2702.3,3.70055]
[1727468590542,1.54816232,2702.4,2702.3,3.70055]
[1727468590977,1.54816232,2702.4,2702.3,3.74132694]
[1727468591182,2.70543965,2702.5,2702.3,3.74132694]
[1727468591593,2.70543965,2702.5,2702.2,3.70068]
[1727468591797,1.5481173,2702.3,2702.2,3.70068]
[1727468592156,1.54840312,2702.3,2702.2,3.70068]
[1727468592758,1.54834309,2702.3,2702.2,3.70068]
[1727468594571,0.7981,2702.2,2701.6,0.8218]
[1727468594778,2.82034919,2701.7,2701.4,11.05169]
[1727468594985,1.16088363,2701.5,2701.4,3.70169]
[1727468595162,1.16088363,2701.6,2701.5,3.70164]
[1727468595578,1.16060815,2701.6,2701.5,3.70164]
[1727468596412,1.54784484,2701.6,2701.0,3.70219]
[1727468596610,1.16045762,2701.3,2701.0,3.70219]
[1727468596812,1.16045762,2701.4,2701.2,3.70205]
[1727468597011,1.16045762,2701.3,2701.2,3.70197]
[1727468598474,1.16045762,2701.3,2701.0,3.70221]
[1727468598779,1.16045762,2701.3,2701.1,3.70218]
[1727468599195,1.16045762,2701.2,2701.1,3.70218]
[1727468599697,1.16045762,2701.3,2701.1,3.70218]
[1727468600013,1.16045762,2701.2,2701.0,7.40447]
[1727468600220,1.16045762,2701.3,2701.1,3.70219]
[1727468601533,1.16045762,2701.2,2701.1,3.70219]
[1727468603057,1.16045762,2701.2,2701.0,3.70233]
[1727468606225,1.16045762,2701.3,2701.0,3.70233]
[1727468606755,1.16045762,2701.2,2701.0,3.70233]
[1727468607259,1.16045762,2701.3,2701.0,3.70233]
[1727468607557,1.16045762,2701.2,2701.0,3.70233]
[1727468608354,1.16045762,2701.3,2701.0,3.70233]
[1727468608557,1.16045762,2701.3,2700.8,3.70259]
[1727468608755,1.91615762,2701.1,2700.8,3.70259]
[1727468609067,1.91615762,2701.1,2700.6,3.70279]
[1727468609355,1.65946556,2701.0,2700.4,3.70308]
[1727468609527,1.65946556,2700.6,2700.2,7.40661]
[1727468609729,1.16045762,2700.8,2700.0,4.53036]
[1727468609730,1.65946556,2700.4,2700.0,4.53036]
[1727468609933,0.7735,2700.1,2699.5,8.1768]
[1727468610139,1.65946556,2699.9,2699.7,3.70408]
[1727468610383,2.43296556,2700.1,2699.8,3.70397]
[1727468611639,2.43296556,2700.1,2699.9,0.03922716]
[1727468612476,5.7318768,2700.1,2700.0,0.03916035]
[1727468612683,5.7318768,2700.1,2699.3,3.70463]
[1727468612684,0.825,2699.9,2699.3,3.70463]
[1727468612879,0.825,2699.9,2698.4,15.61540349]
[1727468612880,0.825,2699.4,2698.5,8.155]
[1727468613089,3.34540349,2699.1,2698.7,3.70536]
[1727468613389,3.34540349,2698.9,2697.6,0.79716177]
[1727468613590,1.15504603,2699.3,2697.6,0.79716177]
[1727468613591,3.34540349,2698.6,2698.1,3.70623]
[1727468613736,3.34540349,2698.8,2698.3,3.70602]
[1727468615077,3.34540349,2698.8,2698.0,0.805]
[1727468615236,7.87548349,2699.0,2698.4,3.70582]
[1727468615435,9.03353384,2699.0,2698.4,3.70582]
[1727468616060,5.32845384,2699.0,2698.5,3.70573]
[1727468616263,9.03355384,2699.0,2698.4,3.70582]
[1727468617132,5.32845384,2699.0,2698.2,3.7061]
[1727468617332,7.05076349,2698.8,2698.2,3.70606]
[1727468617583,3.34540349,2698.8,2698.3,3.70603]
[1727468617949,0.7771,2698.7,2698.2,3.70606]
[1727468618365,0.7771,2698.7,2698.2,7.41213]
[1727468618546,0.7771,2698.7,2698.2,3.70606]
[1727468619002,0.7771,2698.7,2698.3,3.70603]
[1727468624288,3.34540349,2698.6,2698.1,3.70629]
[1727468624995,3.34540349,2698.4,2698.0,3.70637]
[1727468625291,3.34540349,2698.4,2697.9,3.70654]
[1727468625678,3.34540349,2698.4,2698.0,3.70637]
[1727468626186,3.7057,2698.6,2698.0,7.41274]
[1727468626187,0.55,2698.5,2698.0,7.41274]
[1727468626691,0.55,2698.5,2698.1,0.03861432]
[1727468627568,0.8178,2698.3,2698.1,0.03861432]
[1727468627975,0.8178,2698.3,2697.9,3.70657]
[1727468628181,0.8178,2698.3,2698.2,0.03866437]
[1727468628377,0.8178,2698.3,2697.9,3.70657]
[1727468628563,0.8178,2698.3,2698.2,0.03866437]
[1727468629129,1.65969735,2698.3,2697.8,3.70662]
[1727468629316,3.34540349,2698.0,2697.6,3.70691]
[1727468629908,0.8178,2697.9,2697.6,3.70691]
[1727468630457,0.8178,2697.9,2697.5,3.70712]
[1727468630885,0.8178,2697.9,2697.6,3.70696]
[1727468631199,0.8178,2697.9,2697.4,3.70723]
[1727468631494,1.2763465,2697.9,2697.4,3.70723]
[1727468631684,3.34540349,2697.8,2697.4,3.70723]
[1727468632505,3.34540349,2697.8,2697.2,3.70746]
[1727468632506,7.05213349,2697.8,2697.2,3.70744]
[1727468632876,7.05213349,2697.8,2697.3,3.70731]
[1727468633083,1.203493,2697.8,2697.4,3.70725]
[1727468633400,1.203493,2697.8,2697.4,7.41444]
[1727468633603,1.203493,2697.8,2697.4,3.70719]
[1727468634113,1.203493,2697.8,2697.5,3.70713]
[1727468634287,0.8178,2697.9,2697.5,3.70713]
[1727468634902,3.34540349,2697.8,2697.3,3.70727]
[1727468636001,0.8199,2697.5,2697.3,3.70727]
[1727468636323,0.8199,2697.5,2697.2,3.70741]
[1727468636324,1.23643035,2697.5,2697.2,3.70741]
[1727468636481,0.8199,2697.5,2697.2,3.70741]
[1727468637207,0.8199,2697.5,2697.3,3.70739]
[1727468637409,3.70673,2697.8,2696.8,4.53897]
[1727468637410,0.7689,2697.7,2697.4,3.70719]
[1727468637565,3.34540349,2697.6,2697.2,3.70746]
[1727468637766,3.34540349,2697.6,2697.3,3.70734]
[1727468638182,4.12751284,2697.6,2697.1,3.70759]
[1727468638379,3.34540349,2697.4,2697.1,3.70759]
[1727468638804,0.809,2697.3,2697.1,3.70759]
[1727468640105,3.34540349,2697.2,2696.8,3.708]
[1727468640305,3.34540349,2697.2,2696.9,3.70795]
[1727468640532,3.34540349,2697.2,2696.9,3.74570013]
[1727468640732,3.34540349,2697.2,2696.9,0.03775013]
[1727468640889,7.86332349,2697.0,2696.9,0.03775013]
[1727468641092,7.86332349,2697.0,2696.6,0.0183384]
[1727468641413,3.34540349,2696.9,2696.6,3.7266984]
[1727468641803,3.34540349,2696.9,2696.7,0.03788407]
[1727468643228,0.8101,2697.0,2696.7,0.03788407]
[1727468643688,4.51793,2697.0,2696.7,0.03788407]
[1727468643894,5.67502535,2697.0,2696.7,0.03788407]
[1727468644735,0.7679,2697.2,2696.9,0.02800286]
[1727468645132,0.7679,2697.2,2697.0,0.0386077]
[1727468649242,0.55,2697.6,2697.2,3.70754]
[1727468649408,4.17430349,2697.7,2697.4,3.70725]
[1727468649613,0.8289,2697.7,2697.5,0.03816118]
[1727468649931,0.8289,2697.7,2697.2,7.41494]
[1727468649932,4.17430349,2697.7,2697.2,3.70746]
[1727468650111,4.96241584,2697.7,2697.6,0.03804852]
[1727468650302,4.96241584,2697.7,2697.2,3.70746]
[1727468650532,4.96241584,2697.7,2697.6,0.03804852]
[1727468650533,8.66933584,2697.7,2697.6,0.03804852]
[1727468650749,8.66933584,2697.7,2697.3,3.70739]
[1727468650921,8.66933584,2697.7,2697.6,0.03804852]
[1727468651254,8.66933584,2697.7,2697.6,0.0379774]
[1727468651450,8.66933584,2697.7,2697.3,3.70739]
[1727468651614,8.66933584,2697.7,2697.6,0.0379774]
[1727468651819,8.66933584,2697.7,2697.3,3.70739]
[1727468652139,0.8289,2697.7,2697.4,3.70726]
[1727468652329,0.8289,2697.7,2697.4,3.74533571]
[1727468654753,0.8289,2697.7,2697.4,0.03807571]
[1727468655433,0.55,2697.8,2697.4,3.74524571]
[1727468655846,0.55,2697.8,2697.4,7.45243571]
[1727468656052,0.38760439,2698.3,2697.5,0.7881]
[1727468656249,0.38760439,2698.3,2698.0,3.70636]
[1727468656411,0.38760439,2698.3,2697.8,3.70662]
[1727468656412,3.7061,2698.3,2697.8,3.70662]
[1727468656750,0.8008,2698.2,2697.9,0.04003407]
[1727468657353,4.50698,2698.2,2697.9,0.04003407]
[1727468657709,4.50698,2698.2,2697.8,3.70662]
[1727468657939,0.8008,2698.2,2697.8,3.70662]
[1727468658639,4.50698,2698.2,2697.7,3.70685]
[1727468658839,4.50698,2698.2,2697.9,0.03736513]
[1727468659035,4.50698,2698.2,2697.7,3.70685]
[1727468659036,5.77040168,2698.2,2697.7,3.70685]
[1727468659238,5.77040168,2698.2,2698.0,0.03970122]
[1727468659407,5.77040168,2698.2,2697.7,3.70685]
[1727468659613,2.06422168,2698.2,2697.8,0.03984461]
[1727468659826,2.06422168,2698.2,2697.7,3.70685]
[1727468660015,1.3254,2698.4,2697.8,0.03985005]
[1727468660214,1.3254,2698.4,2697.9,3.70647]
[1727468660755,1.3254,2698.4,2698.0,0.83580665]
[1727468661108,1.3254,2698.4,2698.0,0.03970665]
[1727468663265,1.3254,2698.4,2698.0,3.74603665]
[1727468663464,0.55,2698.4,2698.0,3.74603665]
[1727468664467,4.2559,2698.4,2698.0,0.03970665]
[1727468664670,4.2559,2698.4,2697.8,8.20934]
[1727468664857,4.2559,2698.4,2698.1,0.04414721]
[1727468665025,5.38661735,2698.4,2697.8,8.20934]
[1727468665230,5.38661735,2698.4,2697.9,0.04431449]
[1727468665782,1.68071735,2698.4,2697.9,0.04431449]
[1727468665936,7.05166349,2698.2,2697.9,0.04431449]
[1727468666284,7.05166349,2698.2,2697.6,7.41383]
[1727468666576,7.05166349,2698.2,2698.0,0.04423085]
[1727468666742,7.05166349,2698.2,2697.6,7.41383]
[1727468666935,7.05166349,2698.2,2698.1,0.04414721]
[1727468667242,8.26052584,2698.2,2698.1,0.04414721]
[1727468667737,8.26052584,2698.2,2697.7,3.70686]
[1727468668287,8.26052584,2698.2,2697.8,0.04446154]
[1727468668581,8.26052584,2698.2,2697.7,3.70686]
[1727468668739,8.26052584,2698.2,2697.9,0.04437789]
[1727468668941,8.26052584,2698.2,2697.7,3.70686]
[1727468669141,8.26052584,2698.2,2698.0,0.04429425]
[1727468669363,8.26052584,2698.2,2697.7,3.70686]
[1727468669364,1.27474858,2698.1,2697.7,3.70686]
[1727468669571,7.05166349,2698.2,2698.1,0.04421061]
[1727468669742,7.05166349,2698.2,2697.7,3.70686]
[1727468669945,7.05166349,2698.2,2698.1,0.04421061]
[1727468670182,1.93594603,2698.3,2697.9,3.70658]
[1727468670379,1.93594603,2698.3,2698.1,0.05109288]
[1727468670585,1.93594603,2698.3,2698.0,3.70644]
[1727468670586,2.70991112,2698.3,2698.0,0.05119325]
[1727468670881,1.93594603,2698.3,2698.1,0.05109288]
[1727468671078,1.93594603,2698.3,2697.9,3.70658]
[1727468671244,1.93594603,2698.3,2698.2,0.05099253]
[1727468671440,2.70992412,2698.3,2697.9,3.70658]
[1727468671643,1.55487809,2698.3,2698.0,0.05119325]
[1727468671880,4.86128603,2698.2,2698.0,0.05119325]
[1727468672052,4.86128603,2698.2,2697.7,3.70675]
[1727468672253,4.86128603,2698.2,2698.1,0.05663609]
[1727468672458,6.41782627,2698.2,2697.8,3.7067]
[1727468672784,6.41782627,2698.2,2698.1,0.05663609]
[1727468672943,6.41782627,2698.2,2697.8,3.7067]
[1727468673346,6.41782627,2698.2,2697.9,0.05685913]
[1727468674207,3.10272293,2698.3,2697.9,3.76336913]
[1727468674208,2.70992412,2698.3,2697.9,3.76336913]
[1727468674381,1.93594603,2698.3,2697.9,3.76336913]
[1727468674938,1.93594603,2698.3,2697.9,3.70651]
[1727468675367,1.93594603,2698.3,2698.0,3.76320983]
[1727468675546,1.15504603,2698.3,2698.0,7.46949983]
[1727468675753,5.41095603,2698.4,2698.0,0.05678983]
[1727468675952,5.41095603,2698.4,2697.9,4.51185]
[1727468675953,1.15504603,2698.3,2697.9,4.51185]
[1727468676351,1.70504603,2698.4,2698.1,0.05660231]
[1727468676663,5.41094603,2698.4,2698.2,0.05649081]
[1727468676846,1.15504603,2698.3,2697.9,0.8053]